bitfinex/quotes_BTCUSD_20241222
["timestamp","ask_amount","ask_price","bid_price","bid_amount"]
[1734860987119,8.58e-05,97111.0,97110.0,0.1]
[1734860987326,8.58e-05,97111.0,97110.0,0.3831084]
[1734860987533,8.58e-05,97111.0,97110.0,0.48772482]
[1734860987736,8.58e-05,97111.0,97110.0,0.53602482]
[1734860988170,8.58e-05,97111.0,97110.0,0.63602482]
[1734860988339,0.01923992,97130.0,97111.0,0.605949]
[1734860988542,0.01923992,97129.0,97111.0,0.8351574]
[1734860988802,0.01923992,97129.0,97128.0,0.533813]
[1734860989018,0.01923992,97129.0,97128.0,0.6351214]
[1734860989217,8.58e-05,97133.0,97132.0,0.1796]
[1734860989382,8.58e-05,97133.0,97132.0,0.18062932]
[1734860989558,8.58e-05,97133.0,97132.0,0.28519849]
[1734860989760,8.58e-05,97133.0,97132.0,0.28416917]
[1734860990004,8.58e-05,97133.0,97132.0,0.48547757]
[1734860990590,8.58e-05,97133.0,97132.0,1.04853757]
[1734860990909,0.0020858,97133.0,97132.0,1.05653757]
[1734860991072,0.0020858,97133.0,97132.0,1.15653757]
[1734860991266,0.0010858,97133.0,97132.0,1.15553757]
[1734860991478,8.58e-05,97133.0,97132.0,1.14853757]
[1734860991838,0.0010858,97133.0,97132.0,1.15553757]
[1734860992855,0.0020858,97133.0,97132.0,1.15653757]
[1734860993048,8.58e-05,97133.0,97132.0,1.14853757]
[1734860993224,0.0010858,97133.0,97132.0,1.14953757]
[1734860993451,0.0020858,97133.0,97132.0,1.15653757]
[1734860993641,0.0010858,97133.0,97132.0,1.15553757]
[1734860993872,0.0010858,97133.0,97132.0,1.14953757]
[1734860994057,0.0010858,97133.0,97132.0,1.15653757]
[1734860994227,0.0010858,97133.0,97132.0,1.15553757]
[1734860994652,0.0010858,97133.0,97132.0,1.1449684]
[1734860994855,0.0020858,97133.0,97132.0,1.1519684]
[1734861003429,0.0020858,97133.0,97132.0,0.8519684]
[1734861003626,0.0020858,97133.0,97132.0,0.72276]
[1734861004198,0.0020858,97133.0,97132.0,0.52276]
[1734861004409,0.0020858,97133.0,97132.0,0.62276]
[1734861004686,0.0020858,97133.0,97132.0,0.52276]
[1734861004823,0.0020858,97133.0,97132.0,0.62176]
[1734861004824,0.0010858,97133.0,97132.0,0.62176]
[1734861005024,0.0010858,97133.0,97132.0,0.72176]
[1734861005285,0.0020858,97133.0,97132.0,0.62676]
[1734861005477,0.0010858,97133.0,97132.0,0.72176]
[1734861005684,8.58e-05,97133.0,97132.0,0.71476]
[1734861005913,8.58e-05,97133.0,97132.0,0.61876]
[1734861006158,8.58e-05,97133.0,97132.0,0.71876]
[1734861006330,0.01932572,97133.0,97132.0,0.71876]
[1734861006543,0.01932572,97133.0,97132.0,0.61476]
[1734861006943,0.01932572,97133.0,97132.0,0.61776]
[1734861007155,0.01932572,97133.0,97132.0,0.51676]
[1734861007362,0.27063412,97133.0,97132.0,0.51676]
[1734861007515,0.27063412,97133.0,97132.0,0.51876]
[1734861007856,0.35353412,97133.0,97132.0,0.51876]
[1734861008309,0.35353412,97133.0,97132.0,0.51676]
[1734861008680,0.35353412,97133.0,97132.0,0.51476]
[1734861009096,0.35353412,97133.0,97132.0,0.51576]
[1734861009440,0.35353412,97133.0,97132.0,0.51476]
[1734861009441,0.01932572,97133.0,97132.0,0.51476]
[1734861009857,0.01932572,97133.0,97132.0,0.71576]
[1734861011282,8.58e-05,97133.0,97132.0,0.51576]
[1734861011498,0.01927879,97133.0,97132.0,0.51576]
[1734861012487,0.25217879,97133.0,97132.0,0.51476]
[1734861012721,0.25617879,97133.0,97132.0,0.51476]
[1734861012948,0.25717879,97133.0,97132.0,0.51476]
[1734861013423,0.30617879,97133.0,97132.0,0.51476]
[1734861013632,0.40748719,97133.0,97132.0,0.51476]
[1734861014419,0.44079667,97133.0,97132.0,0.51476]
[1734861014639,0.41779667,97133.0,97132.0,0.51476]
[1734861015797,0.17427879,97133.0,97132.0,0.51476]
[1734861016007,0.02427879,97133.0,97132.0,0.51476]
[1734861017307,0.02427879,97133.0,97132.0,0.61476]
[1734861018089,0.02427879,97133.0,97132.0,0.71476]
[1734861021352,0.02027879,97133.0,97132.0,0.71476]
[1734861021775,0.27458719,97133.0,97132.0,0.51476]
[1734861022242,0.27058719,97133.0,97132.0,0.51476]
[1734861022633,0.27258719,97133.0,97132.0,0.51476]
[1734861023010,0.27158719,97133.0,97132.0,0.51476]
[1734861023407,0.27058719,97133.0,97132.0,0.51576]
[1734861024052,0.28068931,97133.0,97132.0,0.51576]
[1734861024813,0.28168931,97133.0,97132.0,0.51576]
[1734861026373,0.36078931,97133.0,97132.0,0.51576]
[1734861026986,0.40588931,97133.0,97132.0,0.51576]
[1734861027969,0.40588931,97133.0,97132.0,0.51476]
[1734861028929,0.40988931,97133.0,97132.0,0.51476]
[1734861029226,0.40488931,97133.0,97132.0,0.51476]
[1734861029435,0.41288931,97133.0,97132.0,0.51476]
[1734861029609,0.41588931,97133.0,97132.0,0.51476]
[1734861031968,0.41588931,97133.0,97132.0,0.52073183]
[1734861035697,0.43888931,97133.0,97132.0,0.52073183]
[1734861040749,0.43888931,97133.0,97132.0,0.49627051]
[1734861047157,0.37078931,97133.0,97132.0,0.49627051]
[1734861047408,0.14168931,97133.0,97132.0,0.49627051]
[1734861047609,0.03027879,97133.0,97132.0,0.67937051]
[1734861047916,0.03027879,97133.0,97132.0,0.82887051]
[1734861048279,0.02727879,97133.0,97132.0,0.82887051]
[1734861048479,0.03027879,97133.0,97132.0,0.82887051]
[1734861049039,0.02227879,97133.0,97132.0,0.82887051]
[1734861049480,0.03027879,97133.0,97132.0,0.82987051]
[1734861049935,0.01927879,97133.0,97132.0,0.82887051]
[1734861050387,0.01927879,97133.0,97132.0,0.83087051]
[1734861051128,0.01927879,97133.0,97132.0,0.83287051]
[1734861051748,0.01927879,97133.0,97132.0,0.60027051]
[1734861051976,0.01927879,97133.0,97132.0,0.70027051]
[1734861052167,0.01927879,97133.0,97132.0,0.50027051]
[1734861052437,0.27058719,97133.0,97132.0,0.50027051]
[1734861053219,0.27058719,97133.0,97132.0,0.49627051]
[1734861053625,0.27058719,97133.0,97132.0,0.49727051]
[1734861054071,0.27058719,97133.0,97132.0,0.49627051]
[1734861054692,0.27358719,97133.0,97132.0,0.49627051]
[1734861054919,0.27358719,97133.0,97132.0,0.49416738]
[1734861056953,0.27365649,97133.0,97132.0,0.49416738]
[1734861059479,0.35365649,97133.0,97132.0,0.49416738]
[1734861059886,0.35365649,97133.0,97132.0,0.49433878]
[1734861060496,0.35065649,97133.0,97132.0,0.49433878]
[1734861060668,0.35365649,97133.0,97132.0,0.49433878]
[1734861060872,0.36165649,97133.0,97132.0,0.49533878]
[1734861061031,0.35865649,97133.0,97132.0,0.49533878]
[1734861061433,0.36165649,97133.0,97132.0,0.49533878]
[1734861061886,0.28165649,97133.0,97132.0,0.49533878]
[1734861063750,0.37032653,97133.0,97132.0,0.49533878]
[1734861063965,0.35095649,97133.0,97132.0,0.49533878]
[1734861064374,0.35095649,97133.0,97132.0,0.4308941]
[1734861065018,0.35095649,97133.0,97132.0,0.41372444]
[1734861065232,0.3316942,97133.0,97132.0,0.41372444]
[1734861066873,0.5375972,97133.0,97132.0,0.41372444]
[1734861068434,2.7565972,97133.0,97132.0,0.33119526]
[1734861068636,2.7565972,97133.0,97132.0,0.21627987]
[1734861069131,2.7565972,97133.0,97112.0,0.0001714]
[1734861069132,0.285945,97113.0,97112.0,0.0001714]
[1734861069296,0.6065534,97113.0,97112.0,0.0001714]
[1734861069467,0.023,97112.0,97101.0,0.0001714]
[1734861069711,0.355968,97102.0,97101.0,0.0001714]
[1734861070036,0.4572764,97102.0,97101.0,0.0001714]
[1734861070176,0.4802764,97102.0,97101.0,0.0001714]
[1734861071093,0.56902028,97102.0,97101.0,0.0001714]
[1734861071818,0.57502028,97102.0,97101.0,0.0001714]
[1734861072046,0.56902028,97102.0,97101.0,0.0001714]
[1734861072194,0.59005138,97102.0,97101.0,0.0001714]
[1734861072396,0.57980934,97102.0,97101.0,0.0001714]
[1734861072582,0.4883075,97102.0,97101.0,0.0001714]
[1734861072783,0.49863942,97102.0,97101.0,0.0001714]
[1734861072987,0.49763942,97102.0,97101.0,0.0001714]
[1734861073304,0.50263942,97102.0,97101.0,0.0011714]
[1734861073512,0.56324865,97102.0,97101.0,0.0011714]
[1734861073714,0.31967142,97102.0,97076.0,0.1766]
[1734861073921,0.48229,97092.0,97074.0,0.0001714]
[1734861074094,0.5835984,97092.0,97074.0,0.0001714]
[1734861074871,0.55653464,97092.0,97074.0,0.0001714]
[1734861075655,0.5372984,97092.0,97074.0,0.0001714]
[1734861075899,0.5462984,97092.0,97074.0,0.0001714]
[1734861076275,0.5492984,97092.0,97074.0,0.0001714]
[1734861076816,0.5462984,97092.0,97074.0,0.0001714]
[1734861077208,0.5422984,97092.0,97091.0,0.0011]
[1734861077440,0.57051625,97092.0,97091.0,0.0011]
[1734861078323,0.59351625,97092.0,97091.0,0.0011]
[1734861078735,0.49051625,97092.0,97091.0,0.0011]
[1734861078947,0.50094297,97092.0,97091.0,0.0011]
[1734861079622,0.48172512,97092.0,97091.0,0.0011]
[1734861080028,0.47672512,97092.0,97091.0,0.0001]
[1734861080380,0.47272512,97092.0,97091.0,0.0001]
[1734861080559,0.27373512,97092.0,97091.0,0.0001]
[1734861081093,0.27373512,97092.0,97091.0,0.00405319]
[1734861081295,0.26673512,97092.0,97091.0,0.0001]
[1734861081501,0.26673512,97092.0,97091.0,0.00405319]
[1734861081705,0.11873512,97092.0,97091.0,0.0001]
[1734861081963,0.003,97092.0,97091.0,0.10405319]
[1734861082091,0.003,97092.0,97091.0,0.1001]
[1734861082301,0.003,97092.0,97091.0,0.10405319]
[1734861082501,0.01053162,97097.0,97091.0,0.10405319]
[1734861082502,0.01053162,97097.0,97092.0,0.1]
[1734861082787,0.1013084,97096.0,97092.0,0.1]
[1734861082993,0.1013084,97096.0,97093.0,0.00395306]
[1734861083328,0.15,97095.0,97093.0,0.00395306]
[1734861083999,0.01052236,97100.0,97095.0,0.1]
[1734861084338,0.15,97098.0,97095.0,0.1]
[1734861084460,0.15,97098.0,97096.0,0.00395288]
[1734861084876,0.15,97098.0,97095.0,0.1]
[1734861085059,0.003,97096.0,97095.0,0.1]
[1734861085254,0.456026,97075.0,97056.0,0.0001714]
[1734861085451,0.4573344,97075.0,97056.0,0.0001714]
[1734861086661,0.4573344,97075.0,97074.0,0.00071259]
[1734861086860,0.4593344,97075.0,97074.0,0.00071259]
[1734861087492,0.4653344,97075.0,97074.0,0.00071259]
[1734861087691,0.4593344,97075.0,97074.0,0.00071259]
[1734861087908,0.46975622,97075.0,97074.0,0.00071259]
[1734861088123,0.47575622,97075.0,97074.0,0.00071259]
[1734861099553,0.49875622,97075.0,97074.0,0.00071259]
[1734861100209,0.49875622,97075.0,97056.0,0.0001714]
[1734861100210,0.356064,97057.0,97056.0,0.0001714]
[1734861100402,0.533164,97057.0,97056.0,0.0001714]
[1734861100576,0.25,97053.0,97036.0,0.0001714]
[1734861100926,0.356106,97037.0,97036.0,0.0001714]
[1734861101052,0.2513084,97037.0,97036.0,0.0001714]
[1734861101267,0.15,97037.0,97036.0,0.0001714]
[1734861102054,0.00054055,97037.0,97036.0,0.0001714]
[1734861102508,0.00054055,97037.0,97036.0,0.0011714]
[1734861103691,0.35664655,97037.0,97036.0,0.0011714]
[1734861104515,0.15054055,97037.0,97036.0,0.0011714]
[1734861105078,0.00054055,97037.0,97036.0,0.0011714]
[1734861109157,0.00054055,97037.0,97036.0,0.00220182]
[1734861109361,0.00054055,97037.0,97036.0,0.01105823]
[1734861109633,0.00054055,97037.0,97036.0,0.01002781]
[1734861110416,0.00054055,97037.0,97036.0,0.0011714]
[1734861112052,0.15054055,97037.0,97036.0,0.0011714]
[1734861113183,0.00054055,97037.0,97036.0,0.0011714]
[1734861114993,0.0198074,97037.0,97036.0,0.0011714]
[1734861118580,0.0198074,97037.0,97036.0,0.0100145]
[1734861118898,0.00054055,97037.0,97036.0,0.0100145]
[1734861119112,0.00054055,97037.0,97036.0,0.0011714]
[1734861121061,0.01982464,97037.0,97036.0,0.0011714]
[1734861124719,0.01982464,97037.0,97036.0,0.1315714]
[1734861124912,0.01982464,97037.0,97036.0,0.13260191]
[1734861125115,0.01982464,97037.0,97036.0,0.14144229]
[1734861125495,0.01982464,97037.0,97036.0,0.14041178]
[1734861125701,0.00054055,97037.0,97036.0,0.14041178]
[1734861125924,0.00054055,97037.0,97036.0,0.14044207]
[1734861126287,0.00054055,97037.0,97036.0,0.14244207]
[1734861126684,0.00054055,97037.0,97036.0,0.14044207]
[1734861127157,0.00054055,97037.0,97036.0,0.14344207]
[1734861127744,0.00054055,97037.0,97036.0,0.14044207]
[1734861129187,0.00054055,97037.0,97036.0,0.34175047]
[1734861129367,0.00054055,97037.0,97036.0,0.34072018]
[1734861129576,0.00054055,97037.0,97036.0,0.44072018]
[1734861129987,0.00054055,97037.0,97036.0,0.44372018]
[1734861130180,0.00054055,97037.0,97036.0,0.34372018]
[1734861130356,0.00054055,97037.0,97036.0,0.44072018]
[1734861130857,0.00154055,97037.0,97036.0,0.44472018]
[1734861131447,0.00054055,97037.0,97036.0,0.44072018]
[1734861131817,0.00154055,97037.0,97036.0,0.44472018]
[1734861132027,0.00254055,97037.0,97036.0,0.44672018]
[1734861132160,0.00254055,97037.0,97036.0,0.24672018]
[1734861132369,0.00254055,97037.0,97036.0,0.34672018]
[1734861132564,0.00154055,97037.0,97036.0,0.34472018]
[1734861132768,0.00254055,97037.0,97036.0,0.34872018]
[1734861133258,0.00054055,97037.0,97036.0,0.34072018]
[1734861133460,0.00154055,97037.0,97036.0,0.34472018]
[1734861133661,0.00154055,97037.0,97036.0,0.35072018]
[1734861133853,0.00254055,97037.0,97036.0,0.35072018]
[1734861134185,0.00154055,97037.0,97036.0,0.34472018]
[1734861134410,0.00254055,97037.0,97036.0,0.35072018]
[1734861135774,0.00254055,97037.0,97036.0,0.86599018]
[1734861136297,0.00254055,97037.0,97036.0,0.76599018]
[1734861139668,0.00254055,97037.0,97036.0,0.86599018]
[1734861140755,0.00254055,97037.0,97036.0,0.96599018]
[1734861141119,0.00254055,97037.0,97036.0,0.98899018]
[1734861141549,8.57e-05,97083.0,97050.0,0.306079]
[1734861141752,8.57e-05,97083.0,97050.0,1.04655988]
[1734861141958,8.57e-05,97083.0,97050.0,1.05526011]
[1734861143191,0.0011714,97051.0,97050.0,1.05726011]
[1734861144154,0.0011714,97051.0,97050.0,1.06126011]
[1734861145516,0.0011714,97051.0,97050.0,0.96126011]
[1734861146249,0.0011714,97051.0,97050.0,0.95726011]
[1734861146581,0.0001714,97051.0,97050.0,0.95926011]
[1734861146931,0.0001714,97051.0,97050.0,0.96026011]
[1734861147137,0.0001714,97051.0,97050.0,0.95526011]
[1734861147331,0.0001714,97051.0,97050.0,0.95926011]
[1734861147560,0.0001714,97051.0,97050.0,0.96426011]
[1734861147761,0.0001714,97051.0,97050.0,0.95526011]
[1734861148171,0.0001714,97051.0,97050.0,0.95926011]
[1734861148382,0.0001714,97051.0,97050.0,1.05926011]
[1734861148737,0.0001714,97051.0,97050.0,1.15926011]
[1734861149243,0.0001714,97051.0,97050.0,1.18226011]
[1734861149447,0.0011714,97051.0,97050.0,1.18426011]
[1734861149833,0.0001714,97051.0,97050.0,1.18226011]
[1734861150273,0.0011714,97051.0,97050.0,1.18826011]
[1734861150462,0.0011714,97051.0,97050.0,1.18426011]
[1734861150737,0.0011714,97051.0,97050.0,1.18926011]
[1734861151167,0.0001714,97051.0,97050.0,1.17826011]
[1734861151369,0.0011714,97051.0,97050.0,1.18526011]
[1734861152154,0.0011714,97051.0,97050.0,1.19579129]
[1734861153161,0.0001714,97051.0,97050.0,1.19279129]
[1734861153898,0.0011714,97051.0,97050.0,1.19779129]
[1734861154051,0.0011714,97051.0,97050.0,1.20379129]
[1734861158537,8.57e-05,97083.0,97056.0,0.1]
[1734861158760,8.57e-05,97083.0,97057.0,0.2013084]
[1734861159037,8.57e-05,97083.0,97057.0,0.72613825]
[1734861159776,8.57e-05,97083.0,97072.0,0.206031]
[1734861160036,0.0010857,97083.0,97074.0,0.206028]
[1734861160232,8.57e-05,97083.0,97080.0,0.206014]
[1734861160526,8.57e-05,97083.0,97081.0,0.00863595]
[1734861160713,0.0010857,97083.0,97081.0,0.00863595]
[1734861161138,0.0030857,97083.0,97081.0,0.00863595]
[1734861161340,8.57e-05,97083.0,97081.0,0.00863595]
[1734861161492,8.57e-05,97083.0,97081.0,0.00870843]
[1734861161671,0.0030857,97083.0,97081.0,0.00870843]
[1734861161878,8.57e-05,97083.0,97081.0,0.00870843]
[1734861162421,0.0030857,97083.0,97081.0,0.00870843]
[1734861162624,0.0040857,97083.0,97081.0,0.00870843]
[1734861163126,0.0030857,97083.0,97081.0,0.00870843]
[1734861163509,0.0040857,97083.0,97081.0,0.00870843]
[1734861165674,0.0040857,97083.0,97082.0,0.206011]
[1734861165912,0.0040857,97083.0,97082.0,0.21462441]
[1734861166471,0.0030857,97083.0,97082.0,0.21462441]
[1734861166676,0.0040857,97083.0,97082.0,0.21462441]
[1734861166872,0.0010857,97083.0,97082.0,0.21462441]
[1734861167258,0.0030857,97083.0,97082.0,0.21462441]
[1734861167685,0.0040857,97083.0,97082.0,0.21462441]
[1734861168498,0.0010857,97083.0,97082.0,0.21462441]
[1734861168902,8.57e-05,97083.0,97082.0,0.21462441]
[1734861169316,8.57e-05,97083.0,97082.0,0.21562441]
[1734861169871,8.57e-05,97083.0,97082.0,0.21462441]
[1734861170077,8.57e-05,97083.0,97082.0,0.21562441]
[1734861170778,8.57e-05,97083.0,97082.0,0.21662441]
[1734861174879,8.57e-05,97083.0,97082.0,0.01061341]
[1734861177582,8.57e-05,97083.0,97082.0,0.00861341]
[1734861177940,0.0040857,97083.0,97082.0,0.00861341]
[1734861178142,0.0010857,97083.0,97082.0,0.00861341]
[1734861178561,0.0050857,97083.0,97082.0,0.00861341]
[1734861178898,0.0010857,97083.0,97082.0,0.00861341]
[1734861179103,8.57e-05,97083.0,97082.0,0.00861341]
[1734861179611,0.0010857,97083.0,97082.0,0.00861341]
[1734861180022,0.01031931,97083.0,97082.0,0.00861341]
[1734861180329,0.0040857,97083.0,97082.0,0.00861341]
[1734861180685,8.57e-05,97083.0,97082.0,0.00861341]
[1734861180930,0.0040857,97083.0,97082.0,0.00861341]
[1734861181102,0.0050857,97083.0,97082.0,0.00861341]
[1734861182089,0.02440717,97083.0,97082.0,0.00861341]
[1734861182685,0.02440717,97083.0,97082.0,0.0096434]
[1734861183277,0.02440717,97083.0,97082.0,0.00861341]
[1734861183483,0.10560717,97083.0,97082.0,0.00861341]
[1734861183897,0.35691557,97083.0,97082.0,0.00861341]
[1734861184281,0.40191557,97083.0,97082.0,0.00861341]
[1734861185235,0.4222143,97083.0,97082.0,0.00861341]
[1734861185720,0.4212143,97083.0,97082.0,0.00861341]
[1734861185846,0.4172143,97083.0,97082.0,0.00861341]
[1734861186042,0.356011,97082.0,97080.0,0.47730706]
[1734861186254,0.3775084,97081.0,97080.0,0.47744697]
[1734861186650,0.42772059,97081.0,97080.0,0.47744697]
[1734861187904,0.77395247,97081.0,97080.0,0.47744697]
[1734861188238,1.02022611,97081.0,97080.0,0.41564097]
[1734861188451,1.02022611,97081.0,97080.0,0.17722828]
[1734861188654,0.98007254,97081.0,97080.0,0.04312828]
[1734861188824,0.98007254,97081.0,97080.0,0.01760304]
[1734861189372,0.97707254,97081.0,97080.0,0.00013991]
[1734861189816,0.97407254,97081.0,97080.0,0.00013991]
[1734861189995,0.97807254,97081.0,97080.0,0.00013991]
[1734861190525,1.07938094,97081.0,97080.0,9.1e-07]
[1734861190738,0.58833,97073.0,97072.0,0.00028]
[1734861190930,0.6896384,97073.0,97072.0,0.00014005]
[1734861191343,0.73985059,97073.0,97072.0,0.00014005]
[1734861191782,0.78025059,97073.0,97072.0,0.00014005]
[1734861192141,0.78925059,97073.0,97072.0,0.00014005]
[1734861192547,0.78025059,97073.0,97072.0,0.00014005]
[1734861193104,1.10348247,97073.0,97072.0,0.00014005]
[1734861193970,1.11948247,97073.0,97072.0,0.00114005]
[1734861194170,1.12988206,97073.0,97072.0,0.00114005]
[1734861194577,1.23119046,97073.0,97072.0,5e-08]
[1734861194791,0.460275,97052.0,97037.0,8.57e-05]
[1734861194992,0.4573834,97052.0,97051.0,0.00024267]
[1734861195411,0.50759559,97052.0,97051.0,0.00024267]
[1734861196753,0.47970487,97052.0,97051.0,0.00024267]
[1734861197338,0.48670487,97052.0,97051.0,0.00024267]
[1734861197568,0.4673834,97052.0,97051.0,0.00024267]
[1734861197847,0.48659353,97052.0,97051.0,0.00024267]
[1734861198183,0.49680025,97052.0,97051.0,0.00024267]
[1734861198591,0.51980025,97052.0,97051.0,0.00024267]
[1734861198831,0.55053647,97052.0,97051.0,0.00024267]
[1734861199597,0.57100114,97052.0,97051.0,0.00024267]
[1734861206234,0.56800114,97052.0,97051.0,0.00024267]
[1734861206567,0.57100114,97052.0,97051.0,0.00024267]
[1734861207175,0.56400114,97052.0,97051.0,0.00024267]
[1734861207796,0.36592614,97052.0,97037.0,8.57e-05]
[1734861208101,0.356104,97038.0,97037.0,0.00024755]
[1734861208298,0.50735875,97038.0,97037.0,0.00024755]
[1734861210451,0.50935875,97038.0,97037.0,0.00024755]
[1734861213654,0.51943558,97038.0,97037.0,0.00024755]
[1734861217200,0.48869936,97038.0,97037.0,0.00024755]
[1734861219226,0.51960995,97038.0,97037.0,0.00024755]
[1734861221775,0.06219755,97038.0,97037.0,0.00024755]
[1734861222008,0.06219755,97038.0,97037.0,0.13064755]
[1734861222175,0.06219755,97038.0,97037.0,0.13804291]
[1734861222382,0.02928696,97038.0,97037.0,0.13804291]
[1734861222735,0.02621013,97038.0,97037.0,0.13804291]
[1734861223906,0.02421013,97038.0,97037.0,0.13804291]
[1734861224372,0.02521013,97038.0,97037.0,0.13804291]
[1734861224500,0.02021013,97038.0,97037.0,0.13804291]
[1734861224903,0.01921013,97038.0,97037.0,0.13804291]
[1734861225147,0.01921013,97038.0,97037.0,0.13904291]
[1734861225341,0.05011146,97038.0,97037.0,0.13904291]
[1734861229975,0.05011146,97038.0,97037.0,0.08864291]
[1734861232020,0.05011146,97038.0,97037.0,0.08764291]
[1734861232844,0.05211146,97038.0,97037.0,0.08764291]
[1734861233245,0.05011146,97038.0,97037.0,0.08764291]
[1734861233458,0.05311146,97038.0,97037.0,0.08764291]
[1734861234348,0.05011146,97038.0,97037.0,0.08764291]
[1734861234751,0.05111146,97038.0,97037.0,0.08764291]
[1734861235182,0.05011146,97038.0,97037.0,0.08764291]
[1734861235548,0.05111146,97038.0,97037.0,0.08764291]
[1734861235753,0.05411146,97038.0,97037.0,0.08764291]
[1734861235978,0.05111146,97038.0,97037.0,0.08764291]
[1734861236377,0.05511146,97038.0,97037.0,0.08764291]
[1734861244008,0.05511146,97038.0,97037.0,0.00764291]
[1734861246025,0.02421013,97038.0,97037.0,0.00764291]
[1734861251891,0.02421013,97038.0,97037.0,0.08464291]
[1734861253615,0.05513786,97038.0,97037.0,0.08464291]
[1734861257050,0.05513786,97038.0,97037.0,0.00764291]
[1734861257393,0.05513786,97038.0,97037.0,0.00024755]
[1734861257599,0.20513786,97038.0,97037.0,0.00024755]
[1734861257819,0.30747624,97038.0,97037.0,0.00024755]
[1734861257999,0.31695273,97038.0,97037.0,0.00024755]
[1734861258816,0.30644626,97038.0,97037.0,0.00024755]
[1734861261130,0.27551853,97038.0,97037.0,0.00024755]
[1734861262063,0.30644211,97038.0,97037.0,0.00024755]
[1734861264624,0.2563084,97038.0,97037.0,0.00024755]
[1734861266024,0.2553084,97038.0,97037.0,0.00024755]
[1734861266204,0.2523084,97038.0,97037.0,0.00024755]
[1734861266649,0.2563084,97038.0,97037.0,0.00024755]
[1734861267963,0.2523084,97038.0,97037.0,0.00024755]
[1734861268376,0.2513084,97038.0,97037.0,0.00024755]
[1734861268778,0.2523084,97038.0,97037.0,0.00024755]
[1734861268923,0.28322114,97038.0,97037.0,0.00024755]
[1734861269124,0.3025416,97038.0,97037.0,0.00024755]
[1734861269930,0.3065416,97038.0,97037.0,0.00024755]
[1734861270436,0.356106,97037.0,97036.0,0.00012098]
[1734861270647,0.4574144,97037.0,97036.0,0.00028323]
[1734861270905,0.5076476,97037.0,97036.0,0.00028323]
[1734861272159,0.5086476,97037.0,97036.0,0.00028323]
[1734861272351,0.3025416,97037.0,97036.0,0.00028323]
[1734861273266,0.3055416,97037.0,97036.0,0.00028323]
[1734861274485,0.2042332,97037.0,97036.0,0.00028323]
[1734861274648,0.0542332,97037.0,97036.0,0.07708323]
[1734861274846,0.0041714,97037.0,97036.0,0.07708323]
[1734861275052,0.0041714,97037.0,97036.0,0.13080494]
[1734861275377,0.05441474,97037.0,97036.0,0.13080494]
[1734861288589,0.05441474,97037.0,97036.0,0.00790494]
[1734861288951,0.05441474,97037.0,97036.0,0.00028323]
[1734861296664,0.05441474,97037.0,97036.0,0.33582271]
[1734861296806,0.05441474,97037.0,97036.0,0.35779223]
[1734861297008,0.05441474,97037.0,97036.0,0.36537755]
[1734861297207,0.02349576,97037.0,97036.0,0.56668595]
[1734861297547,0.02349576,97037.0,97036.0,0.58751179]
[1734861297758,0.01949576,97037.0,97036.0,0.58751179]
[1734861298060,0.02049576,97037.0,97036.0,0.59151179]
[1734861298261,0.01949576,97037.0,97036.0,0.59051179]
[1734861298517,0.01949576,97037.0,97036.0,0.58751179]
[1734861298712,0.02049576,97037.0,97036.0,0.58851179]
[1734861298914,0.02049576,97037.0,97036.0,0.59151179]
[1734861299485,0.03089197,97049.0,97048.0,0.206083]
[1734861299621,0.0001714,97051.0,97050.0,0.206079]
[1734861299825,0.0001714,97051.0,97050.0,0.33654082]
[1734861300325,0.0001714,97051.0,97050.0,0.66084922]
[1734861300990,0.0001714,97051.0,97050.0,0.67114309]
[1734861301381,0.0011714,97051.0,97050.0,0.67214309]
[1734861301610,0.0011714,97051.0,97050.0,0.67114309]
[1734861301815,0.0001714,97051.0,97050.0,0.67514309]
[1734861301986,0.0011714,97051.0,97050.0,0.67614309]
[1734861303184,0.0001714,97072.0,97059.0,0.1]
[1734861303381,0.0001714,97072.0,97071.0,0.328934]
[1734861303586,0.0001714,97072.0,97071.0,0.33643392]
[1734861304492,0.0001714,97072.0,97071.0,0.33759617]
[1734861305151,0.0011714,97072.0,97071.0,0.33659617]
[1734861305535,0.0011714,97072.0,97071.0,0.33859617]
[1734861306345,0.0001714,97072.0,97071.0,0.13256217]
[1734861306865,0.0001714,97072.0,97071.0,0.09006217]
[1734861312444,0.2062034,97072.0,97071.0,0.01366217]
[1734861312655,0.2062034,97072.0,97071.0,0.00616225]
[1734861313330,0.22541583,97072.0,97071.0,0.00616225]
[1734861313485,0.22541583,97072.0,97071.0,0.00416225]
[1734861313689,0.22541583,97072.0,97071.0,0.00016225]
[1734861313886,0.22641583,97072.0,97071.0,0.00016225]
[1734861314067,0.22941583,97072.0,97071.0,0.00016225]
[1734861317457,0.22941583,97072.0,97071.0,0.07776225]
[1734861317458,0.02338383,97072.0,97071.0,0.07776225]
[1734861317644,0.02338383,97072.0,97071.0,0.13418282]
[1734861318237,0.01938383,97072.0,97071.0,0.13418282]
[1734861318661,0.02238383,97072.0,97071.0,0.13418282]
[1734861318857,0.0001714,97072.0,97071.0,0.13418282]
[1734861319332,0.0031714,97072.0,97071.0,0.13418282]
[1734861319971,0.0031714,97072.0,97071.0,0.00016225]
[1734861320180,0.02238383,97072.0,97071.0,0.00016225]
[1734861320659,0.02038383,97072.0,97071.0,0.00016225]
[1734861321037,0.02238383,97072.0,97071.0,0.00016225]
[1734861321236,0.02338383,97072.0,97071.0,0.00016225]
[1734861321808,0.01938383,97072.0,97071.0,0.00016225]
[1734861322228,0.02338383,97072.0,97071.0,0.00016225]
[1734861322455,0.02038383,97072.0,97071.0,0.00016225]
[1734861323224,0.02038383,97072.0,97071.0,0.07616225]
[1734861323431,0.01938383,97072.0,97071.0,0.07616225]
[1734861323637,0.01938383,97072.0,97071.0,0.08357643]
[1734861323861,0.02638383,97072.0,97071.0,0.08457643]
[1734861324258,0.02138383,97072.0,97071.0,0.07616225]
[1734861324475,0.02538383,97072.0,97071.0,0.07716225]
[1734861324683,0.02738383,97072.0,97071.0,0.07716225]
[1734861325023,0.02138383,97072.0,97071.0,0.07616225]
[1734861325212,0.02638383,97072.0,97071.0,0.00116225]
[1734861325392,0.02138383,97072.0,97071.0,0.00016225]
[1734861325807,0.02738383,97072.0,97071.0,0.00116225]
[1734861326620,0.02538383,97072.0,97071.0,0.00116225]
[1734861327079,0.02738383,97072.0,97071.0,0.00116225]
[1734861327618,0.02538383,97072.0,97071.0,0.00116225]
[1734861327811,0.02738383,97072.0,97071.0,0.00116225]
[1734861328256,0.05825688,97072.0,97071.0,0.00116225]
[1734861328435,0.05225688,97072.0,97071.0,0.00016225]
[1734861328780,0.05725688,97072.0,97071.0,0.00116225]
[1734861329131,0.05225688,97072.0,97071.0,0.00016225]
[1734861329960,0.05725688,97072.0,97071.0,0.00116225]
[1734861330677,0.06775955,97072.0,97071.0,0.00116225]
[1734861330901,0.31906795,97072.0,97071.0,0.00116225]
[1734861335301,0.31906795,97072.0,97055.0,0.076]
[1734861335525,0.356066,97056.0,97055.0,0.00016233]
[1734861335714,0.4573744,97056.0,97055.0,0.00016233]
[1734861335944,0.50745988,97056.0,97055.0,0.00016233]
[1734861336587,0.50745988,97056.0,97055.0,0.00116233]